bitfinex/quotes_BTCUSD_20241101
["timestamp","ask_amount","ask_price","bid_price","bid_amount"]
[1730498172188,0.003,69219.0,69217.0,0.028]
[1730498172836,0.144464,69222.0,69216.0,0.001642]
[1730498173039,0.001,69219.0,69218.0,0.014]
[1730498173241,0.002,69219.0,69218.0,0.028]
[1730498173735,0.0461206,69219.0,69218.0,0.028]
[1730498174308,0.0441206,69219.0,69216.0,0.001642]
[1730498174675,0.0461206,69219.0,69217.0,0.028]
[1730498174897,0.0451206,69219.0,69217.0,0.014]
[1730498175144,0.1895896,69219.0,69218.0,0.014]
[1730498175520,0.1895896,69219.0,69216.0,0.015642]
[1730498175720,0.04785196,69218.0,69217.0,0.014]
[1730498176186,0.04785196,69218.0,69216.0,0.001642]
[1730498176526,0.19232396,69218.0,69216.0,0.001642]
[1730498176938,0.0451206,69219.0,69216.0,0.001642]
[1730498177144,0.1895896,69219.0,69216.0,0.001642]
[1730498177331,0.144472,69218.0,69216.0,0.001642]
[1730498177773,0.002,69219.0,69218.0,0.144471]
[1730498177974,0.14446,69223.0,69218.0,0.302941]
[1730498178100,0.14446,69223.0,69220.0,0.144466]
[1730498179121,0.2167695,69223.0,69220.0,0.144466]
[1730498179324,0.01343979,69222.0,69220.0,0.158466]
[1730498179574,0.14646,69223.0,69220.0,0.172466]
[1730498179991,0.002,69223.0,69220.0,0.316932]
[1730498180208,0.002,69223.0,69221.0,0.144464]
[1730498180417,0.146461,69223.0,69220.0,0.028]
[1730498180619,0.145461,69223.0,69220.0,0.158465]
[1730498180774,0.144461,69223.0,69220.0,0.144465]
[1730498180976,0.001,69222.0,69220.0,0.158465]
[1730498181297,0.01544893,69222.0,69220.0,0.158465]
[1730498181497,0.002,69222.0,69221.0,0.014]
[1730498181845,0.001,69222.0,69220.0,0.158465]
[1730498182257,0.002,69222.0,69220.0,0.172465]
[1730498182468,0.0134497,69221.0,69220.0,0.144465]
[1730498183918,0.1579147,69221.0,69218.0,0.14447]
[1730498184130,0.289926,69222.0,69218.0,0.14447]
[1730498184131,0.001,69222.0,69219.0,0.144467]
[1730498184340,0.001,69221.0,69220.0,0.014]
[1730498184547,0.001,69221.0,69220.0,0.158466]
[1730498184548,0.01448157,69221.0,69220.0,0.158466]
[1730498184753,0.01448157,69221.0,69220.0,0.144466]
[1730498184972,0.01348157,69221.0,69220.0,0.144466]
[1730498185178,0.01448157,69221.0,69219.0,0.144469]
[1730498185395,0.01348157,69220.0,69219.0,0.144469]
[1730498185605,0.001,69221.0,69219.0,0.144469]
[1730498186018,0.002,69221.0,69220.0,0.014]
[1730498186189,0.001,69221.0,69220.0,0.014]
[1730498186391,0.001,69221.0,69220.0,0.158466]
[1730498186662,0.01449554,69221.0,69220.0,0.158466]
[1730498187017,0.01349554,69221.0,69220.0,0.144466]
[1730498187540,0.01549554,69221.0,69220.0,0.158466]
[1730498187973,0.01449554,69221.0,69220.0,0.158466]
[1730498188397,0.01549294,69221.0,69220.0,0.172466]
[1730498189907,0.01549294,69221.0,69220.0,0.267566]
[1730498193749,0.01549294,69221.0,69220.0,0.345466]
[1730498194433,0.002,69221.0,69220.0,0.345466]
[1730498198424,0.002,69221.0,69220.0,0.34905329]
[1730498203556,0.002,69221.0,69220.0,0.35069529]
[1730498209778,0.002,69221.0,69220.0,0.347108]
[1730498219662,0.002,69221.0,69220.0,0.58556325]
[1730498219875,0.002,69221.0,69220.0,0.77829078]
[1730498220080,0.21707513,69243.0,69242.0,0.144421]
[1730498220273,0.21707513,69243.0,69242.0,0.46067625]
[1730498220624,0.000821,69245.0,69244.0,0.322216]
[1730498220848,0.000821,69245.0,69244.0,0.56067125]
[1730498221289,0.000821,69245.0,69244.0,0.56267125]
[1730498222745,0.000821,69245.0,69244.0,0.57667125]
[1730498222947,0.000821,69245.0,69244.0,0.57867125]
[1730498223361,0.000821,69245.0,69244.0,0.57667125]
[1730498223565,0.000821,69245.0,69244.0,0.56267125]
[1730498223774,0.000821,69245.0,69244.0,0.57667125]
[1730498224245,0.000821,69245.0,69244.0,0.56267125]
[1730498224717,0.000821,69245.0,69244.0,0.58167125]
[1730498225137,0.000821,69245.0,69244.0,0.57667125]
[1730498225359,0.000821,69245.0,69244.0,0.58467125]
[1730498225576,0.000821,69245.0,69244.0,0.59867125]
[1730498226495,0.000821,69248.0,69247.0,0.43421]
[1730498226718,0.000821,69248.0,69247.0,0.57266525]
[1730498227483,0.000818,69260.0,69254.0,0.002]
[1730498227692,0.000818,69260.0,69254.0,0.56765025]
[1730498227917,0.000818,69260.0,69254.0,0.57265025]
[1730498228995,4.985e-05,69279.0,69276.0,0.24435]
[1730498229222,4.985e-05,69279.0,69276.0,0.56060525]
[1730498229846,0.21789313,69294.0,69276.0,0.56060525]
[1730498230295,0.000818,69294.0,69276.0,0.56560525]
[1730498230539,0.000818,69294.0,69276.0,0.57060525]
[1730498230774,0.000818,69294.0,69293.0,0.240514]
[1730498230994,0.000818,69294.0,69293.0,0.56056925]
[1730498232041,0.000818,69294.0,69293.0,0.77764438]
[1730498232321,0.000818,69294.0,69293.0,0.56056925]
[1730498232743,0.000818,69294.0,69293.0,0.57956925]
[1730498232943,0.000818,69294.0,69293.0,0.79164438]
[1730498233158,0.000818,69294.0,69293.0,0.69440925]
[1730498233363,0.000818,69294.0,69293.0,0.70840925]
[1730498233604,0.0180778,69303.0,69302.0,0.151295]
[1730498233825,0.0180778,69303.0,69302.0,0.39763568]
[1730498234052,0.0180778,69303.0,69302.0,0.39475025]
[1730498234483,0.000818,69315.0,69314.0,0.24427]
[1730498234699,0.000818,69315.0,69314.0,0.14427]
[1730498235868,0.000818,69315.0,69314.0,0.15827]
[1730498236100,0.000818,69315.0,69314.0,0.29672525]
[1730498236539,0.000818,69315.0,69314.0,0.31072525]
[1730498236756,0.000818,69315.0,69314.0,0.38072525]
[1730498236972,0.000818,69315.0,69314.0,0.39472525]
[1730498237169,0.000818,69315.0,69314.0,0.49472525]
[1730498237603,0.000818,69315.0,69314.0,0.57252525]
[1730498237819,0.000818,69315.0,69314.0,0.57452525]
[1730498238425,0.000818,69315.0,69314.0,0.56052525]
[1730498238635,0.000818,69315.0,69314.0,0.57452525]
[1730498238836,0.000818,69315.0,69314.0,0.58652525]
[1730498239057,0.000818,69315.0,69314.0,0.57252525]
[1730498239463,0.000818,69315.0,69314.0,0.58652525]
[1730498240122,0.000818,69315.0,69314.0,0.58852525]
[1730498240296,0.000818,69315.0,69314.0,0.58652525]
[1730498242252,0.000818,69315.0,69314.0,0.55852525]
[1730498242446,0.000818,69315.0,69314.0,0.57252525]
[1730498242799,0.000818,69315.0,69314.0,0.55852525]
[1730498243176,0.000818,69315.0,69314.0,0.58652525]
[1730498243937,0.000818,69315.0,69314.0,0.58852525]
[1730498244373,0.000818,69315.0,69314.0,0.57452525]
[1730498244788,0.000818,69315.0,69314.0,0.58652525]
[1730498250580,0.000818,69315.0,69314.0,0.58852525]
[1730498250779,0.000818,69315.0,69314.0,0.58652525]
[1730498257828,0.000818,69315.0,69314.0,0.41072525]
[1730498258252,0.01428053,69315.0,69314.0,0.41072525]
[1730498258685,0.01428053,69315.0,69314.0,0.39672525]
[1730498259326,0.01428053,69315.0,69314.0,0.41072525]
[1730498259541,0.01428053,69315.0,69314.0,0.39672525]
[1730498260842,0.01428053,69315.0,69314.0,0.41072525]
[1730498262344,0.000818,69315.0,69314.0,0.41072525]
[1730498262557,0.0143249,69315.0,69314.0,0.41072525]
[1730498263480,0.000818,69315.0,69314.0,0.41072525]
[1730498263695,0.01433267,69315.0,69314.0,0.41072525]
[1730498266434,0.000818,69315.0,69314.0,0.41072525]
[1730498266655,0.01433621,69315.0,69314.0,0.41072525]
[1730498268185,0.01433621,69315.0,69314.0,0.17227]
[1730498269234,0.01433621,69315.0,69314.0,0.028]
[1730498269449,0.03019573,69315.0,69311.0,0.28855]
[1730498269658,0.03019573,69315.0,69305.0,0.288579]
[1730498269659,0.01351821,69314.0,69305.0,0.288579]
[1730498269871,0.01351821,69314.0,69307.0,0.288571]
[1730498270000,0.01351821,69314.0,69309.0,0.144281]
[1730498270201,0.01351821,69314.0,69308.0,0.144283]
[1730498270404,0.01351821,69314.0,69303.0,0.0052307]
[1730498270405,0.1352,69313.0,69303.0,0.0052307]
[1730498270660,0.144275,69312.0,69305.0,0.21707513]
[1730498270858,0.16417183,69313.0,69305.0,0.22607513]
[1730498271059,0.15779321,69312.0,69306.0,0.144287]
[1730498271357,0.01351821,69312.0,69307.0,0.144285]
[1730498271584,0.01351821,69312.0,69303.0,0.0052307]
[1730498271585,0.30207021,69312.0,69303.0,0.0192307]
[1730498271781,0.11657959,69312.0,69305.0,0.144289]
[1730498272013,0.26085559,69312.0,69305.0,0.144289]
[1730498272156,0.26085559,69312.0,69304.0,0.21707513]
[1730498272383,0.26085559,69312.0,69306.0,0.144286]
[1730498272726,0.11657959,69312.0,69305.0,0.302576]
[1730498272940,0.11657959,69312.0,69305.0,0.014]
[1730498272941,0.144287,69306.0,69305.0,0.014]
[1730498273337,0.207887,69306.0,69305.0,0.014]
[1730498274190,0.144291,69304.0,69303.0,0.00164]
[1730498275429,0.31737255,69304.0,69303.0,0.00164]
[1730498275840,0.37904254,69304.0,69303.0,0.00164]
[1730498276042,0.46516582,69304.0,69303.0,0.00164]
[1730498276246,0.37904254,69304.0,69303.0,0.00164]
[1730498276666,0.37904254,69304.0,69303.0,0.00264]
[1730498276667,0.39304254,69304.0,69303.0,0.00264]
[1730498276884,0.60809779,69304.0,69303.0,0.00264]
[1730498277087,0.60309779,69304.0,69303.0,0.00264]
[1730498277296,0.60809779,69304.0,69303.0,0.00264]
[1730498277505,0.005,69294.0,69292.0,0.21707513]
[1730498277938,0.432943,69293.0,69292.0,0.21707513]
[1730498278130,0.144323,69289.0,69283.0,0.21707513]
[1730498278375,0.288637,69291.0,69284.0,0.144332]
[1730498278583,0.144316,69292.0,69284.0,0.144332]
[1730498278584,0.0609,69292.0,69284.0,0.288666]
[1730498278789,0.144319,69291.0,69285.0,0.14433]
[1730498278965,0.02316345,69290.0,69285.0,0.14433]
[1730498279796,0.02316345,69290.0,69286.0,0.144329]
[1730498280225,0.01446826,69289.0,69286.0,0.144329]
[1730498280640,0.01346826,69288.0,69283.0,0.21707513]
[1730498280842,0.01346826,69287.0,69283.0,0.144334]
[1730498281053,0.03166393,69286.0,69285.0,0.012]
[1730498281268,0.03166393,69286.0,69285.0,0.156331]
[1730498281479,0.03166393,69286.0,69285.0,0.144331]
[1730498281480,0.01819567,69286.0,69285.0,0.144331]
[1730498283159,0.01919567,69286.0,69285.0,0.144331]
[1730498283371,0.001,69286.0,69285.0,0.144331]
[1730498283589,0.001,69286.0,69284.0,0.144332]
[1730498283796,0.002,69286.0,69285.0,0.012]
[1730498284216,0.002,69286.0,69285.0,0.156331]
[1730498284427,0.001,69286.0,69285.0,0.156331]
[1730498284640,0.02316345,69290.0,69286.0,0.144329]
[1730498285695,0.16748445,69290.0,69286.0,0.144329]
[1730498285906,0.08106455,69289.0,69285.0,0.001642]
[1730498286325,0.001,69286.0,69285.0,0.001642]
[1730498287183,0.144325,69288.0,69286.0,0.012]
[1730498287603,0.31280845,69290.0,69285.0,0.001642]
[1730498287812,0.144323,69289.0,69285.0,0.001642]
[1730498288031,0.002,69286.0,69285.0,0.013642]
[1730498288495,0.001,69286.0,69285.0,0.001642]
[1730498288910,0.03228085,69286.0,69285.0,0.013642]
[1730498289122,0.17660985,69286.0,69285.0,0.013642]
[1730498289592,0.17560985,69286.0,69285.0,0.013642]
[1730498290047,0.17560985,69286.0,69285.0,0.001642]
[1730498290477,0.17660985,69286.0,69285.0,0.013642]
[1730498290690,0.17760985,69286.0,69285.0,0.013642]
[1730498292921,0.146329,69286.0,69285.0,0.013642]
[1730498299013,0.15981687,69286.0,69285.0,0.013642]
[1730498301294,0.146329,69286.0,69285.0,0.013642]
[1730498301501,0.15984584,69286.0,69285.0,0.013642]
[1730498303693,0.01551684,69286.0,69285.0,0.332173]
[1730498305074,0.002,69286.0,69285.0,0.332173]
[1730498305330,0.01551453,69286.0,69285.0,0.332173]
[1730498312726,0.01551453,69286.0,69285.0,0.47062825]
[1730498312950,0.002,69286.0,69285.0,0.47062825]
[1730498313395,0.001,69286.0,69285.0,0.47062825]
[1730498313610,0.21707513,69302.0,69289.0,0.1713]
[1730498313820,0.01351446,69301.0,69292.0,0.0786]
[1730498314033,0.000821,69303.0,69301.0,0.0786]
[1730498314239,0.0135145,69302.0,69301.0,0.0786]
[1730498315346,0.0135145,69302.0,69301.0,0.222898]
[1730498316077,0.0245145,69302.0,69301.0,0.316598]
[1730498316773,0.0245145,69302.0,69301.0,0.317598]
[1730498317207,0.0245145,69302.0,69301.0,0.45605325]
[1730498317425,0.011,69302.0,69301.0,0.45605325]
[1730498318113,0.011,69302.0,69301.0,0.45505325]
[1730498318353,0.011,69302.0,69301.0,0.56205325]
[1730498318620,0.000821,69303.0,69302.0,0.417595]
[1730498318861,0.000821,69303.0,69302.0,0.55605025]
[1730498319333,0.000818,69315.0,69314.0,0.14427]
[1730498319564,0.000818,69315.0,69314.0,0.31557]
[1730498319806,0.000818,69315.0,69314.0,0.45402525]
[1730498320056,0.000818,69315.0,69314.0,0.55402525]
[1730498321219,0.000818,69315.0,69314.0,0.77310038]
[1730498321460,0.000818,69315.0,69314.0,0.58902525]
[1730498321689,0.000818,69315.0,69314.0,0.60302525]
[1730498321907,0.000818,69325.0,69324.0,0.22285]
[1730498322162,0.000818,69325.0,69324.0,0.55400525]
[1730498322614,0.000818,69325.0,69324.0,0.64439915]
[1730498322840,0.000818,69325.0,69324.0,0.55400525]
[1730498323057,0.000818,69325.0,69324.0,0.56800525]
[1730498324700,0.000818,69325.0,69324.0,0.58200525]
[1730498325581,0.000818,69325.0,69324.0,0.58662108]
[1730498326244,0.000818,69325.0,69324.0,0.58200525]
[1730498332997,0.000818,69325.0,69324.0,0.66866525]
[1730498333212,0.000818,69325.0,69324.0,0.70166525]
[1730498333431,0.000818,69325.0,69324.0,0.67366525]
[1730498334961,0.000818,69325.0,69324.0,0.66866525]
[1730498335189,0.000818,69325.0,69324.0,0.67366525]
[1730498336295,0.000818,69325.0,69324.0,0.58700525]
[1730498336738,0.000818,69325.0,69324.0,0.58900525]
[1730498338326,0.000818,69325.0,69324.0,0.58700525]
[1730498339423,0.000818,69325.0,69324.0,0.58200525]
[1730498339646,0.000818,69325.0,69324.0,0.58700525]
[1730498340532,0.000818,69325.0,69324.0,0.70166525]
[1730498340771,0.000818,69325.0,69324.0,0.70366525]
[1730498340993,0.000818,69325.0,69324.0,0.58700525]
[1730498340994,1e-06,69325.0,69324.0,0.58700525]
[1730498341205,1e-06,69325.0,69324.0,0.58200525]
[1730498341648,1e-06,69325.0,69324.0,0.57300525]
[1730498341864,1e-06,69325.0,69324.0,0.56800525]
[1730498342310,1e-06,69325.0,69324.0,0.58200525]
[1730498342757,1e-06,69325.0,69324.0,0.69666525]
[1730498342985,1e-06,69325.0,69324.0,0.69866525]
[1730498343206,1e-06,69325.0,69324.0,0.68966525]
[1730498343668,1e-06,69325.0,69324.0,0.70366525]
[1730498344127,1e-06,69325.0,69324.0,0.69866525]
[1730498345654,1e-06,69325.0,69324.0,0.70366525]
[1730498345925,1e-06,69325.0,69324.0,0.69866525]
[1730498346562,1e-06,69325.0,69324.0,0.70366525]
[1730498348568,1e-06,69325.0,69324.0,0.69866525]
[1730498348798,1e-06,69325.0,69324.0,0.70366525]
[1730498349006,1e-06,69325.0,69324.0,0.69666525]
[1730498349240,1e-06,69325.0,69324.0,0.66866525]
[1730498349889,1e-06,69325.0,69324.0,0.58200525]
[1730498350995,1e-06,69325.0,69324.0,0.48930525]
[1730498352103,1e-06,69325.0,69324.0,0.41070525]
[1730498353518,1e-06,69325.0,69324.0,0.27225]
[1730498353952,1e-06,69325.0,69324.0,0.273892]
[1730498354163,0.01351004,69325.0,69324.0,0.273892]
[1730498354380,0.01351004,69325.0,69324.0,0.173892]
[1730498355046,0.013511,69325.0,69324.0,0.173892]
[1730498355322,0.013511,69325.0,69324.0,0.029642]
[1730498355559,0.013511,69325.0,69324.0,0.015642]
[1730498355769,0.157759,69325.0,69324.0,0.029642]
[1730498355993,0.157759,69325.0,69324.0,0.015642]
[1730498356227,0.157759,69325.0,69324.0,0.029642]
[1730498356454,0.013511,69325.0,69324.0,0.029642]
[1730498357370,0.19392822,69325.0,69324.0,0.029642]
[1730498358309,0.19892822,69325.0,69324.0,0.029642]
[1730498359505,0.19890373,69325.0,69324.0,0.029642]
[1730498359720,0.30618976,69325.0,69324.0,0.029642]
[1730498359955,0.37858976,69325.0,69324.0,0.029642]
[1730498360170,0.37858976,69325.0,69316.0,0.21707513]
[1730498360171,0.144264,69317.0,69316.0,0.21707513]
[1730498360416,0.16274951,69317.0,69316.0,0.21707513]
[1730498360884,0.16274951,69317.0,69315.0,0.001642]
[1730498360885,0.144266,69316.0,69315.0,0.001642]
[1730498361110,0.16275151,69316.0,69315.0,0.001642]
[1730498361570,0.30120676,69316.0,69315.0,0.001642]
[1730498362254,0.30119554,69316.0,69315.0,0.001642]
[1730498362469,0.43280765,69316.0,69315.0,0.001642]
[1730498362683,0.43380765,69316.0,69315.0,0.002642]
[1730498362908,0.16374029,69316.0,69315.0,0.002642]
[1730498363564,0.17774029,69316.0,69315.0,0.003642]
[1730498363993,0.25371992,69316.0,69315.0,0.003642]
[1730498365785,0.25370122,69316.0,69315.0,0.003642]
[1730498366062,0.39715647,69316.0,69315.0,0.003642]
[1730498366277,0.53125647,69316.0,69315.0,0.003642]
[1730498369412,0.51780088,69316.0,69315.0,0.003642]
[1730498369620,0.53124639,69316.0,69315.0,0.003642]
[1730498369860,0.5312438,69316.0,69315.0,0.003642]
[1730498370500,0.5562438,69316.0,69315.0,0.003642]
[1730498370729,0.5542438,69316.0,69315.0,0.003642]
[1730498372661,0.5312438,69316.0,69315.0,0.003642]
[1730498373535,0.32116417,69316.0,69315.0,0.003642]
[1730498375137,0.005,69308.0,69307.0,0.21707513]
[1730498375342,0.149283,69308.0,69307.0,0.21707513]
[1730498375761,0.288563,69309.0,69301.0,0.0912]
[1730498375762,0.005,69307.0,69301.0,0.0912]
[1730498375967,0.18023912,69307.0,69300.0,0.36137413]
[1730498376175,0.144288,69306.0,69300.0,0.36137413]
[1730498376607,0.144288,69306.0,69301.0,0.144297]
[1730498376819,0.005,69302.0,69296.0,0.0763]
[1730498377030,0.144298,69301.0,69296.0,0.0763]
[1730498378301,0.144298,69301.0,69300.0,0.012]
[1730498378542,0.144303,69299.0,69296.0,0.0763]
[1730498378744,0.07399515,69298.0,69296.0,0.0873]
[1730498378980,0.07399515,69298.0,69296.0,0.0983]
[1730498379185,0.07399515,69298.0,69296.0,0.0763]
[1730498381111,0.07599515,69298.0,69296.0,0.1003]
[1730498381315,0.05118952,69297.0,69296.0,0.0883]
[1730498381543,0.05118952,69297.0,69296.0,0.0763]
[1730498381754,0.06466386,69297.0,69296.0,0.1003]
[1730498382177,0.06466386,69297.0,69296.0,0.0883]
[1730498382405,0.06466386,69297.0,69296.0,0.0763]
[1730498382618,0.06566386,69297.0,69296.0,0.0883]
[1730498382858,0.21096986,69297.0,69296.0,0.024]
[1730498383699,0.21098342,69297.0,69296.0,0.024]
[1730498383908,0.21598342,69297.0,69296.0,0.024]
[1730498385188,0.35443867,69297.0,69296.0,0.024]
[1730498386087,0.35943867,69297.0,69296.0,0.024]
[1730498386540,0.35443867,69297.0,69296.0,0.024]
[1730498386773,0.35943867,69297.0,69296.0,0.024]
[1730498387833,0.1697939,69297.0,69296.0,0.024]
[1730498389723,0.1697939,69297.0,69296.0,0.025642]
[1730498390586,0.1698117,69297.0,69296.0,0.025642]
[1730498391012,0.156306,69297.0,69296.0,0.025642]
[1730498391223,0.16981169,69297.0,69296.0,0.025642]
[1730498391885,0.01550569,69297.0,69296.0,0.105642]
[1730498392314,0.01550569,69297.0,69296.0,0.24995]
[1730498392995,0.01550569,69297.0,69296.0,0.105642]
[1730498393212,0.01550569,69297.0,69296.0,0.24995]
[1730498394376,0.01550569,69297.0,69296.0,0.105642]
[1730498394609,0.06134586,69297.0,69296.0,0.105642]
[1730498395917,0.06134586,69297.0,69296.0,0.24995]
[1730498396132,0.06135299,69297.0,69296.0,0.24995]
[1730498396340,0.01551282,69297.0,69296.0,0.24995]
[1730498398989,0.01551282,69297.0,69296.0,0.34185]
[1730498401591,0.01551995,69297.0,69296.0,0.34185]
[1730498401810,0.01551995,69297.0,69296.0,0.41375]
[1730498402035,0.01551997,69297.0,69296.0,0.41375]
[1730498405023,0.01130291,69297.0,69296.0,0.269442]
[1730498405246,0.149297,69302.0,69297.0,0.00444837]
[1730498405455,0.005,69302.0,69297.0,0.00679372]
[1730498405755,0.144299,69301.0,69297.0,0.00679372]
[1730498406206,0.144298,69301.0,69297.0,0.00679372]
[1730498407339,0.144298,69301.0,69297.0,0.15109872]
[1730498407340,0.145298,69301.0,69297.0,0.15109872]
[1730498407594,0.001,69301.0,69298.0,0.144302]
[1730498407999,0.146299,69301.0,69297.0,0.01379372]
[1730498408506,0.146299,69301.0,69297.0,0.15809972]
[1730498408969,0.1443,69300.0,69297.0,0.01379372]
[1730498409185,0.290597,69301.0,69297.0,0.01379372]
[1730498409186,0.146299,69301.0,69297.0,0.15809972]
[1730498409444,0.146299,69301.0,69297.0,0.01379372]
[1730498409660,0.145299,69301.0,69297.0,0.01379372]
[1730498409890,0.1443,69300.0,69297.0,0.01379372]
[1730498410982,0.08864157,69300.0,69297.0,0.01379372]
[1730498410986,0.04317548,69298.0,69297.0,0.00679372]
[1730498411243,0.19247948,69298.0,69297.0,0.00679372]
[1730498411495,0.44742349,69298.0,69297.0,0.00679372]
[1730498411984,0.30396824,69298.0,69297.0,0.01479372]
[1730498412223,0.26782937,69298.0,69297.0,0.00679372]
[1730498412441,0.26882937,69298.0,69297.0,0.01979372]
[1730498412685,0.18130516,69298.0,69297.0,0.00679372]
[1730498412929,0.26783751,69298.0,69297.0,0.00679372]
[1730498413172,0.16594492,69298.0,69297.0,0.00679372]
[1730498413436,0.32565229,69298.0,69297.0,0.00679372]
[1730498414148,0.34365229,69298.0,69297.0,0.00779372]
[1730498414391,0.34365229,69298.0,69297.0,0.00879372]
[1730498414630,0.35765955,69298.0,69297.0,0.00879372]
[1730498414869,0.4311919,69298.0,69297.0,0.00679372]
[1730498415101,0.4171919,69298.0,69297.0,0.00679372]
[1730498415341,0.43859825,69298.0,69297.0,0.00879372]
[1730498415573,0.44359825,69298.0,69297.0,0.00679372]
[1730498415812,0.34965955,69298.0,69297.0,0.00779372]
[1730498416052,0.45759825,69298.0,69297.0,0.00779372]
[1730498416487,0.34965955,69298.0,69297.0,0.00779372]
[1730498416727,0.45783726,69298.0,69297.0,0.00779372]
[1730498416978,0.34965955,69298.0,69297.0,0.00779372]
[1730498417262,0.45283726,69298.0,69297.0,0.00779372]
[1730498417498,0.37218416,69298.0,69297.0,0.00879372]
[1730498417741,0.44519634,69298.0,69297.0,0.00879372]
[1730498417975,0.48036199,69298.0,69297.0,0.00879372]
[1730498418421,0.3721993,69298.0,69297.0,0.00879372]
[1730498419106,0.48037599,69298.0,69297.0,0.00879372]
[1730498419357,0.33607199,69298.0,69297.0,0.00879372]
[1730498419599,0.2278953,69298.0,69297.0,0.00879372]
[1730498420100,0.2012549,69298.0,69297.0,0.32509972]
[1730498421718,0.09291448,69298.0,69297.0,0.32509972]
[1730498422185,0.04152642,69298.0,69297.0,0.32509972]
[1730498422888,0.1064434,69298.0,69297.0,0.32509972]
[1730498423122,0.04152642,69298.0,69297.0,0.32509972]
[1730498425278,0.028,69298.0,69297.0,0.32509972]
[1730498425524,0.028,69298.0,69297.0,0.42509972]
[1730498427665,0.028,69298.0,69297.0,0.56355497]
[1730498428119,0.028,69298.0,69297.0,0.56814495]
[1730498428582,0.0432643,69313.0,69299.0,0.172]
[1730498428803,0.0432643,69314.0,69313.0,0.144273]
[1730498429058,0.05677271,69314.0,69313.0,0.144273]
[1730498429274,0.05677271,69314.0,69313.0,0.36134813]
[1730498429492,0.000821,69315.0,69314.0,0.23987]
[1730498429725,0.000821,69315.0,69314.0,0.31627]
[1730498430238,0.000821,69315.0,69314.0,0.53334513]
[1730498430484,0.000821,69315.0,69314.0,0.55472525]
[1730498431617,0.001821,69315.0,69314.0,0.56872525]
[1730498431841,0.000821,69324.0,69323.0,0.444952]
[1730498432060,0.000821,69324.0,69323.0,0.58840725]
[1730498433995,9e-05,69341.0,69340.0,0.316916]
[1730498434236,0.21716513,69341.0,69340.0,0.45537125]
[1730498434487,9e-05,69341.0,69340.0,0.55537125]
[1730498435391,9e-05,69341.0,69340.0,0.56937125]
[1730498436349,9e-05,69341.0,69340.0,0.58337125]
[1730498436821,9e-05,69341.0,69340.0,0.56937125]
[1730498437034,9e-05,69341.0,69340.0,0.58337125]
[1730498437245,0.00109,69341.0,69340.0,0.56937125]
[1730498437665,9e-05,69341.0,69340.0,0.56937125]
[1730498438314,9e-05,69341.0,69340.0,0.58337125]
[1730498438315,0.00109,69341.0,69340.0,0.58337125]
[1730498439661,0.21707513,69356.0,69340.0,0.58337125]
[1730498439662,4.981e-05,69365.0,69349.0,0.288396]
[1730498439878,4.981e-05,69365.0,69347.0,0.005]
[1730498439879,0.21789313,69364.0,69363.0,0.221969]
[1730498440361,0.000818,69364.0,69363.0,0.221969]
[1730498441841,0.000818,69364.0,69363.0,0.235969]
[1730498442049,0.000818,69364.0,69363.0,0.330869]
[1730498442488,0.000818,69364.0,69363.0,0.45532425]
[1730498443121,0.000818,69364.0,69363.0,0.46932425]
[1730498443583,0.000818,69364.0,69363.0,0.45532425]
[1730498444042,0.000818,69364.0,69363.0,0.46932425]
[1730498444560,0.000818,69364.0,69363.0,0.48332425]
[1730498444785,0.0147128,69371.0,69370.0,0.144154]
[1730498446151,0.0147128,69371.0,69370.0,0.158154]
[1730498446379,0.0147128,69371.0,69370.0,0.171154]
[1730498447085,0.0147128,69371.0,69370.0,0.46310925]
[1730498449322,0.0147128,69371.0,69370.0,0.63986925]
[1730498449535,0.0147128,69371.0,69370.0,0.73986925]
[1730498452045,0.0147128,69371.0,69370.0,0.72586925]
[1730498452253,0.0147128,69371.0,69370.0,0.72686925]
[1730498452882,0.0147128,69371.0,69370.0,0.71286925]
[1730498453307,0.0147128,69371.0,69370.0,0.74086925]
[1730498453956,0.0147128,69371.0,69370.0,0.72686925]
[1730498454651,0.0147128,69371.0,69370.0,0.71286925]
[1730498455082,0.0147128,69371.0,69370.0,0.72686925]
[1730498455313,0.0147128,69371.0,69370.0,0.74086925]
[1730498456019,0.0097128,69371.0,69370.0,0.74086925]
[1730498456511,0.0097128,69371.0,69370.0,0.76886925]
[1730498459654,0.0097128,69371.0,69370.0,0.77050925]
[1730498459888,0.0105328,69371.0,69370.0,0.77050925]
[1730498460578,0.0105328,69371.0,69370.0,0.77550925]
[1730498460579,3e-06,69371.0,69370.0,0.77550925]
[1730498460836,3e-06,69371.0,69370.0,0.77750925]
[1730498462420,3e-06,69371.0,69370.0,0.77550925]
[1730498462870,3e-06,69371.0,69370.0,0.74250925]
[1730498465973,0.01346023,69371.0,69370.0,0.74250925]
[1730498467316,0.01346023,69371.0,69370.0,0.65584925]
[1730498467549,0.01346023,69371.0,69370.0,0.413294]
[1730498467774,0.01346023,69371.0,69370.0,0.299294]
[1730498467984,0.01346023,69371.0,69370.0,0.231694]
[1730498468188,0.01346023,69371.0,69370.0,0.245694]
[1730498468398,0.01346023,69371.0,69370.0,0.217694]
[1730498468611,0.01346023,69371.0,69370.0,0.231694]
[1730498468846,0.01346023,69371.0,69370.0,0.245694]
[1730498469064,0.01348123,69371.0,69370.0,0.245694]
[1730498470138,0.01348123,69371.0,69370.0,0.10154]
[1730498470139,0.15763323,69371.0,69370.0,0.10154]
[1730498470581,0.144154,69370.0,69367.0,0.14416]
[1730498470800,0.01347823,69369.0,69367.0,0.14416]
[1730498471021,0.15763623,69368.0,69363.0,0.288336]
[1730498471271,0.01347823,69367.0,69365.0,0.144163]
[1730498471497,0.144156,69371.0,69367.0,0.144159]
[1730498471712,0.15764932,69370.0,69364.0,0.288334]
[1730498471931,0.01349432,69369.0,69365.0,0.288329]
[1730498472142,0.01349432,69368.0,69367.0,0.148159]
[1730498472372,0.01349432,69368.0,69367.0,0.144159]
[1730498472609,0.01349554,69368.0,69366.0,0.432487]
[1730498472898,0.003,69369.0,69367.0,0.144159]
[1730498473110,0.01349554,69368.0,69365.0,0.288329]
[1730498473337,3e-06,69371.0,69366.0,0.288324]
[1730498473563,0.0134961,69370.0,69365.0,0.288329]